bitfinex/quotes_BTCUSD_20251104
["timestamp","ask_amount","ask_price","bid_price","bid_amount"]
[1762267059231,0.19635956,103160.0,103150.0,0.06225758]
[1762267059680,0.19635956,103160.0,103150.0,0.08414758]
[1762267060176,0.19635956,103160.0,103150.0,0.02348758]
[1762267060403,0.19635956,103160.0,103150.0,0.01962758]
[1762267061034,0.00248597,103160.0,103150.0,0.06298758]
[1762267061244,0.09796504,103160.0,103150.0,0.25687996]
[1762267061457,0.29836863,103160.0,103150.0,0.00248758]
[1762267061668,0.29183863,103160.0,103150.0,0.00648758]
[1762267061872,0.29183863,103160.0,103150.0,0.01962758]
[1762267062722,0.63183863,103160.0,103150.0,0.00648758]
[1762267063273,0.58183863,103160.0,103150.0,0.00648758]
[1762267063473,0.04796504,103160.0,103150.0,0.03735758]
[1762267063707,0.30872886,103160.0,103150.0,0.00648758]
[1762267063968,0.30242266,103160.0,103150.0,0.02021758]
[1762267064170,0.19387359,103160.0,103150.0,0.06298758]
[1762267064376,0.19385986,103170.0,103150.0,0.06298758]
[1762267064579,0.09547907,103160.0,103150.0,0.25702595]
[1762267065018,0.28931645,103180.0,103170.0,0.004]
[1762267065233,0.19387164,103170.0,103150.0,0.06721357]
[1762267065439,0.19387164,103170.0,103160.0,0.02511]
[1762267065611,0.19487164,103170.0,103160.0,0.0453]
[1762267065830,0.00189479,103170.0,103160.0,0.0453]
[1762267065975,0.19574959,103170.0,103160.0,0.0453]
[1762267066162,0.00189479,103170.0,103160.0,0.23917359]
[1762267066404,0.19574959,103170.0,103160.0,0.004]
[1762267066607,0.19574959,103170.0,103160.0,0.23917359]
[1762267066608,0.00089479,103170.0,103160.0,0.23917359]
[1762267066813,0.19474959,103170.0,103160.0,0.02019]
[1762267067019,0.19474959,103170.0,103160.0,0.004]
[1762267067459,0.19474959,103170.0,103150.0,0.21117652]
[1762267067712,0.00089479,103170.0,103160.0,0.19387359]
[1762267067919,0.19474959,103170.0,103160.0,0.02511]
[1762267068206,0.19394691,103130.0,103110.0,0.0078492]
[1762267068429,0.19394691,103130.0,103060.0,0.42267625]
[1762267068636,0.00999999,103050.0,103040.0,0.0013]
[1762267068848,0.22187638,103050.0,103040.0,0.0013]
[1762267069067,0.12813762,103050.0,103040.0,0.0013]
[1762267069289,0.07357385,103050.0,103040.0,0.0013]
[1762267069512,0.08237758,103050.0,103040.0,0.0013]
[1762267069737,0.03659957,103050.0,103040.0,0.00774086]
[1762267069964,0.036745,103050.0,103040.0,0.00774086]
[1762267070411,0.03672919,103050.0,103040.0,0.20184023]
[1762267070619,0.01787858,103050.0,103040.0,0.20184023]
[1762267071085,0.01481317,103050.0,103040.0,0.25820023]
[1762267071325,0.02649543,103050.0,103020.0,0.0553]
[1762267071555,0.00999999,103070.0,103050.0,0.19407498]
[1762267071788,0.02535,103100.0,103060.0,0.26068479]
[1762267072023,0.00999999,103060.0,103050.0,0.00048597]
[1762267072252,0.20747171,103060.0,103050.0,0.00048597]
[1762267072475,0.05760421,103060.0,103050.0,0.00048597]
[1762267072698,0.19408054,103050.0,103040.0,0.05452597]
[1762267072906,0.01548716,103050.0,103040.0,0.05452597]
[1762267073111,0.2095677,103050.0,103040.0,0.05452597]
[1762267073318,0.30504677,103050.0,103040.0,0.00148597]
[1762267073553,0.00999999,103040.0,103020.0,0.2494363]
[1762267073752,0.00999999,103040.0,103030.0,0.05696]
[1762267073980,0.00999999,103040.0,103030.0,0.25407821]
[1762267074184,0.00999999,103040.0,103030.0,0.25107821]
[1762267074597,0.00048717,103050.0,103040.0,0.004]
[1762267074800,0.01048716,103050.0,103040.0,0.19809937]
[1762267075383,0.01048716,103050.0,103040.0,0.004]
[1762267075583,0.01048716,103050.0,103040.0,0.05288]
[1762267075786,0.10596623,103050.0,103040.0,0.05688]
[1762267075990,0.00148717,103050.0,103040.0,0.25097937]
[1762267076165,0.2045677,103050.0,103040.0,0.004]
[1762267076638,0.01048716,103050.0,103040.0,0.05688]
[1762267076843,0.01148716,103050.0,103040.0,0.25093937]
[1762267077046,3.00148717,103050.0,103040.0,0.19809937]
[1762267077238,3.01048716,103050.0,103040.0,0.05684]
[1762267077397,3.01048716,103050.0,103040.0,0.19809937]
[1762267077615,3.00148717,103050.0,103040.0,0.25293937]
[1762267077924,3.00148717,103050.0,103040.0,0.05884]
[1762267078130,3.2309177,103050.0,103040.0,0.002]
[1762267078306,0.00999999,103040.0,103030.0,0.00024423]
[1762267078492,0.12485526,103040.0,103030.0,0.00024423]
[1762267078696,0.30895464,103040.0,103030.0,0.05308423]
[1762267078918,0.10547906,103040.0,103030.0,0.00024423]
[1762267079129,0.00999999,103040.0,103030.0,0.05716423]
[1762267079645,3.19556878,103050.0,103030.0,0.25428244]
[1762267079646,3.01148716,103050.0,103030.0,0.25428244]
[1762267079866,3.2055677,103050.0,103040.0,0.05688]
[1762267080076,3.2055677,103050.0,103040.0,0.004]
[1762267080303,3.01148716,103050.0,103040.0,0.004]
[1762267080536,3.01048716,103050.0,103040.0,0.25089937]
[1762267080747,3.01048716,103050.0,103040.0,0.25789937]
[1762267081549,1.54540876,103050.0,103040.0,0.59989937]
[1762267081770,0.35159423,103050.0,103040.0,0.60989936]
[1762267082157,0.11324403,103050.0,103040.0,0.55709936]
[1762267082360,0.11324403,103050.0,103040.0,0.20009937]
[1762267082563,0.11224403,103050.0,103040.0,0.25281937]
[1762267082713,0.11224403,103050.0,103040.0,0.25285937]
[1762267082939,0.11224403,103050.0,103040.0,0.19813937]
[1762267083137,0.11224403,103050.0,103040.0,0.19817937]
[1762267083298,0.11824403,103050.0,103040.0,0.25189937]
[1762267083494,0.11824403,103050.0,103040.0,0.25193937]
[1762267083703,0.12824402,103050.0,103040.0,0.25197937]
[1762267083901,0.11624403,103050.0,103040.0,0.59101937]
[1762267084157,0.11224403,103050.0,103040.0,0.00424]
[1762267084366,0.13124402,103050.0,103040.0,0.19933937]
[1762267084566,0.13624402,103050.0,103040.0,0.05784]
[1762267084887,0.31632456,103050.0,103040.0,0.00024]
[1762267085097,0.34167456,103050.0,103040.0,0.00424]
[1762267085311,0.34567456,103050.0,103040.0,0.0538]
[1762267085570,0.16919124,103050.0,103040.0,0.00124]
[1762267085771,0.00999999,103040.0,103030.0,0.04612423]
[1762267085992,0.02340999,103040.0,103030.0,0.04812423]
[1762267086203,0.00999999,103040.0,103030.0,0.24224244]
[1762267086416,0.12224402,103050.0,103040.0,0.19409937]
[1762267086630,0.11224403,103050.0,103040.0,0.19609937]
[1762267087451,0.11724403,103050.0,103040.0,0.19809937]
[1762267088074,0.11724403,103050.0,103040.0,0.19709937]
[1762267088276,0.11624403,103050.0,103040.0,0.24949937]
[1762267088493,0.11624403,103050.0,103040.0,0.24945937]
[1762267088698,0.12024403,103050.0,103040.0,0.19513937]
[1762267088902,0.12024403,103050.0,103040.0,0.25149937]
[1762267089101,0.12024403,103050.0,103040.0,0.25153937]
[1762267089305,0.12024403,103050.0,103040.0,0.25157937]
[1762267089440,0.12024403,103050.0,103040.0,0.0012]
[1762267089653,0.34967456,103050.0,103040.0,0.05344]
[1762267089860,0.15559402,103050.0,103040.0,0.05348]
[1762267090082,0.15559402,103050.0,103040.0,0.19937937]
[1762267090083,0.13024402,103050.0,103040.0,0.19937937]
[1762267090340,0.13024402,103050.0,103040.0,0.25161937]
[1762267090556,0.11624403,103050.0,103040.0,0.24661937]
[1762267090771,0.11224403,103050.0,103040.0,0.24661937]
[1762267090981,0.11324403,103050.0,103040.0,0.59761937]
[1762267091189,0.14859402,103050.0,103040.0,0.00728]
[1762267091606,0.11324403,103050.0,103040.0,0.00728]
[1762267091814,0.12224402,103050.0,103040.0,0.05716]
[1762267092018,0.33267457,103050.0,103040.0,0.06678741]
[1762267092257,0.12324402,103050.0,103040.0,0.25121937]
[1762267092472,1.44567288,103050.0,103040.0,0.00028]
[1762267092687,0.94096834,103050.0,103040.0,0.00028]
[1762267093109,0.2041182,103030.0,103020.0,0.02896]
[1762267093321,0.20415589,103010.0,103000.0,30.71110117]
[1762267093528,0.32498496,103010.0,103000.0,30.71110117]
[1762267093984,0.87648412,103010.0,103000.0,30.71110117]
[1762267094199,0.92327549,103010.0,103000.0,30.71110117]
[1762267094399,0.92327549,103010.0,103000.0,30.71158834]
[1762267094400,0.37177633,103010.0,103000.0,30.71158834]
[1762267094606,0.17762043,103010.0,103000.0,30.71158834]
[1762267094816,0.35412808,103010.0,103000.0,30.71158834]
[1762267095024,0.35412808,103010.0,103000.0,30.71258834]
[1762267095025,0.16497218,103010.0,103000.0,30.71258834]
[1762267095259,0.37278233,103010.0,103000.0,30.71258834]
[1762267095484,0.14064734,103010.0,103000.0,30.71262834]
[1762267095702,0.16098302,103010.0,103000.0,30.71262834]
[1762267095905,0.16098302,103010.0,103000.0,30.90680309]
[1762267096115,0.09647907,103010.0,103000.0,30.90684309]
[1762267096315,0.11431136,103010.0,103000.0,30.72129575]
[1762267096520,0.15555088,103010.0,103000.0,30.72133575]
[1762267096747,0.17690593,103010.0,103000.0,30.9165505]
[1762267096953,0.17690593,103010.0,103000.0,30.9165905]
[1762267096954,0.13966593,103010.0,103000.0,30.9165905]
[1762267097156,0.1935971,103010.0,103000.0,30.9155905]
[1762267097361,0.1935971,103010.0,103000.0,30.72141575]
[1762267097565,0.391753,103010.0,103000.0,30.72341575]
[1762267097815,0.388753,103010.0,103000.0,30.71378834]
[1762267098037,0.387753,103010.0,103000.0,30.71178834]
[1762267098252,0.388753,103010.0,103000.0,30.71178834]
[1762267098459,0.387753,103010.0,103000.0,30.71178834]
[1762267098920,0.05987803,103010.0,103000.0,30.90669602]
[1762267099138,0.01299999,103010.0,103000.0,30.20984084]
[1762267099357,0.01299999,103010.0,103000.0,30.0740935]
[1762267099566,0.37144635,103010.0,103000.0,30.0272935]
[1762267099797,0.17998648,103010.0,103000.0,30.01766609]
[1762267100011,0.17112854,103010.0,103000.0,30.22146825]
[1762267100230,0.10947906,103010.0,103000.0,30.22146825]
[1762267100459,0.10947906,103010.0,103000.0,30.22546825]
[1762267100460,0.10647906,103010.0,103000.0,30.22546825]
[1762267100697,0.10647906,103010.0,103000.0,30.21946825]
[1762267100923,0.10547906,103010.0,103000.0,30.21946825]
[1762267101142,0.14771906,103010.0,103000.0,30.01566609]
[1762267101359,0.51796989,103010.0,103000.0,30.01566609]
[1762267101597,0.51796989,103010.0,103000.0,30.21946825]
[1762267101598,0.03239962,103010.0,103000.0,30.21946825]
[1762267101820,0.01099999,103010.0,103000.0,30.22346825]
[1762267102037,0.01199999,103010.0,103000.0,30.22346825]
[1762267102262,0.01199999,103010.0,103000.0,30.21946825]
[1762267102492,0.20515589,103010.0,103000.0,30.0212935]
[1762267102733,0.20515589,103010.0,103000.0,30.21546825]
[1762267102734,0.10647906,103010.0,103000.0,30.21546825]
[1762267102951,0.10747906,103010.0,103000.0,30.22146825]
[1762267103172,0.002,103010.0,103000.0,30.22546825]
[1762267103385,0.10547906,103030.0,103020.0,0.19413706]
[1762267103623,0.02937619,103040.0,103030.0,0.19411821]
[1762267103831,0.00999999,103040.0,103030.0,0.19411821]
[1762267104044,0.00999999,103040.0,103030.0,0.19811821]
[1762267104278,0.20861922,103050.0,103020.0,0.26631132]
[1762267104279,0.00999999,103030.0,103020.0,0.06646741]
[1762267104508,0.20861922,103050.0,103020.0,0.27030789]
[1762267104725,0.12314014,103050.0,103040.0,0.19809937]
[1762267104935,0.12314014,103050.0,103040.0,0.26048678]
[1762267105142,0.12314014,103050.0,103040.0,0.06638741]
[1762267105394,0.41269975,103050.0,103040.0,0.01362741]
[1762267105604,0.41269975,103050.0,103020.0,0.00962741]
[1762267105605,0.19411687,103040.0,103020.0,0.00962741]
[1762267105819,0.10547906,103030.0,103020.0,0.25697164]
[1762267106026,0.10647906,103030.0,103020.0,0.06983458]
[1762267106232,0.01099999,103030.0,103020.0,0.26797164]
[1762267106522,0.00999999,103030.0,103020.0,0.26097164]
[1762267106737,0.2041182,103030.0,103020.0,0.06283458]
[1762267106919,0.2041182,103030.0,103020.0,0.06775458]
[1762267107202,0.29959727,103030.0,103020.0,0.06775458]
[1762267107394,0.34083727,103030.0,103020.0,0.01011458]
[1762267107572,0.37008267,103030.0,103020.0,0.01011458]
[1762267107830,0.37208267,103030.0,103020.0,0.01511458]
[1762267108253,0.20415589,103010.0,103000.0,30.0200734]
[1762267108457,0.30012183,103010.0,103000.0,30.0200734]
[1762267108666,0.37059196,103010.0,103000.0,30.0200734]
[1762267108890,0.17643606,103010.0,103000.0,30.0200734]
[1762267109098,0.34136183,103010.0,103000.0,30.0200734]
[1762267109319,0.37058841,103010.0,103000.0,30.0200734]
[1762267109746,0.3617447,103010.0,103000.0,30.0200734]
[1762267110201,0.37058866,103010.0,103000.0,30.0200734]
[1762267110689,0.71158866,103010.0,103000.0,29.96430599]
[1762267110920,0.72563866,103010.0,103000.0,29.96430599]
[1762267111134,0.72263866,103010.0,103000.0,29.96330599]
[1762267111586,0.71663382,103010.0,103000.0,29.96330599]
[1762267111813,0.1263488,103010.0,103000.0,30.16710815]
[1762267112027,0.1263488,103010.0,103000.0,30.22342815]
[1762267112028,0.01048686,103010.0,103000.0,30.22342815]
[1762267112465,0.00048687,103010.0,103000.0,30.22342815]
[1762267112686,0.00548687,103010.0,103000.0,20.22442815]
[1762267112906,0.05698686,103010.0,103000.0,19.9739334]
[1762267113146,0.20964276,103010.0,103000.0,19.96730599]
[1762267113420,0.34762183,103010.0,103000.0,19.97130599]
[1762267113636,0.10696593,103010.0,103000.0,19.97130599]
[1762267113858,0.10696593,103010.0,103000.0,20.23234815]
[1762267113859,0.00248687,103010.0,103000.0,20.23234815]
[1762267114072,0.00148687,103010.0,103000.0,20.22034815]
[1762267114280,0.00048687,103010.0,103000.0,20.16710815]
[1762267114490,0.00048687,103010.0,103000.0,20.22404108]
[1762267114704,0.00148687,103010.0,103000.0,20.22504108]
[1762267114913,0.00103687,103010.0,103000.0,20.22104108]
[1762267115123,0.00603687,103010.0,103000.0,20.22104108]
[1762267115546,0.00603687,103010.0,103000.0,20.22504108]
[1762267115761,0.00603687,103010.0,103000.0,20.17284108]
[1762267115984,0.00603687,103010.0,103000.0,20.22500108]
[1762267116194,0.00103687,103010.0,103000.0,20.22500108]
[1762267116407,0.01941307,103010.0,103000.0,19.97766633]
[1762267116613,0.10551593,103010.0,103000.0,19.97466633]
[1762267116793,0.29967183,103010.0,103000.0,19.97466633]
[1762267117033,0.30067183,103010.0,103000.0,19.97966633]
[1762267117257,0.8939831,103010.0,103000.0,19.97003892]
[1762267117464,0.30852281,103010.0,103000.0,19.96403892]
[1762267117670,0.10551593,103010.0,103000.0,20.15821367]
[1762267117875,0.30167183,103010.0,103000.0,19.97466633]
[1762267118080,0.10951593,103010.0,103000.0,20.16984108]
[1762267118284,0.01403686,103010.0,103000.0,20.22588108]
[1762267118496,0.01403686,103010.0,103000.0,19.92124633]
[1762267118705,0.01403686,103010.0,103000.0,20.11542108]
[1762267118942,0.01403686,103010.0,103000.0,19.92124633]
[1762267119164,0.01203686,103010.0,103000.0,20.11842108]
[1762267119401,0.01203686,103010.0,103000.0,19.92424633]
[1762267119851,0.01603686,103010.0,103000.0,20.11942108]
[1762267120069,0.01203686,103010.0,103000.0,20.11842108]
[1762267120558,0.01403686,103010.0,103000.0,20.11942108]
[1762267120774,0.01203686,103010.0,103000.0,20.11842108]
[1762267120991,0.01203686,103010.0,103000.0,19.92424633]
[1762267121214,0.01303686,103010.0,103000.0,20.12142108]
[1762267121674,0.00303687,103010.0,103000.0,20.12142108]
[1762267121885,0.20719276,103010.0,103000.0,19.92724633]
[1762267122086,0.01303686,103010.0,103000.0,19.92724633]
[1762267122298,0.01303686,103010.0,103000.0,20.12142108]
[1762267122929,0.00103687,103010.0,103000.0,20.12022108]
[1762267123110,3.687e-05,103010.0,103000.0,20.11722108]
[1762267123349,0.00203687,103010.0,103000.0,20.12026108]
[1762267123595,0.00203687,103010.0,103000.0,19.92208633]
[1762267123805,0.01203686,103010.0,103000.0,20.11626108]
[1762267124018,0.01103686,103010.0,103000.0,20.11326108]
[1762267124302,0.01203686,103010.0,103000.0,20.11926108]
[1762267124709,0.00203687,103010.0,103000.0,19.92508633]
[1762267124925,0.01203686,103010.0,103000.0,19.94230633]
[1762267125134,0.01203686,103010.0,103000.0,20.13648108]
[1762267125352,0.01203686,103010.0,103000.0,20.20536108]
[1762267125785,0.00203687,103010.0,103000.0,20.20536108]
[1762267125992,0.01203686,103010.0,103000.0,20.20536108]
[1762267126208,0.00203687,103010.0,103000.0,20.20540108]
[1762267126841,0.00203687,103010.0,103000.0,20.20544108]
[1762267127067,3.687e-05,103010.0,103000.0,20.20344108]
[1762267127271,3.687e-05,103010.0,103000.0,20.20348108]
[1762267127504,0.00203687,103010.0,103000.0,20.21252108]
[1762267127713,0.00103687,103010.0,103000.0,20.21052108]
[1762267127920,3.687e-05,103010.0,103000.0,20.20352108]
[1762267128166,0.01203687,103010.0,103000.0,20.20452108]
[1762267128369,0.01203687,103010.0,103000.0,20.20443157]
[1762267128581,0.00999999,103040.0,103030.0,0.19411821]
[1762267128780,0.00999999,103040.0,103030.0,0.22511105]
[1762267128983,0.00999999,103040.0,103030.0,0.09987284]
[1762267129190,0.00999999,103040.0,103030.0,0.03099284]
[1762267129425,0.00999999,103040.0,103030.0,0.29399105]
[1762267129878,0.00999999,103040.0,103030.0,0.29385348]
[1762267130324,0.12314014,103050.0,103040.0,0.19809937]
[1762267130789,0.31722068,103050.0,103040.0,0.07294]
[1762267130986,0.12314014,103050.0,103040.0,0.07294]
[1762267131189,0.12314014,103050.0,103040.0,0.26703937]
[1762267131582,0.12314014,103050.0,103040.0,0.07294]
[1762267131813,0.12314014,103050.0,103040.0,0.26703937]
[1762267131992,0.31722068,103050.0,103040.0,0.004]
[1762267132429,0.12314014,103050.0,103040.0,0.26703937]
[1762267132629,0.12314014,103050.0,103040.0,0.27003937]
[1762267132854,0.11314015,103050.0,103040.0,0.32115937]
[1762267133270,0.11314015,103050.0,103040.0,0.34758937]
[1762267133403,0.11314015,103050.0,103040.0,0.34458937]
[1762267133606,0.11314015,103050.0,103040.0,0.29346937]
[1762267133813,0.11314015,103050.0,103040.0,0.29646937]
[1762267134026,0.12314014,103050.0,103040.0,0.34858937]
[1762267134276,0.12314014,103050.0,103040.0,0.29450937]
[1762267134481,0.31922068,103050.0,103040.0,4e-05]
[1762267134683,0.12514014,103050.0,103040.0,0.22456937]
[1762267135020,0.31922068,103050.0,103040.0,0.03047]
[1762267135318,0.31922068,103050.0,103040.0,0.00404]
[1762267135536,1.23848094,103050.0,103040.0,4e-05]
[1762267135785,1.23648094,103050.0,103040.0,4e-05]
[1762267135981,1.23648094,103050.0,103040.0,0.00404]
[1762267136413,0.40269976,103050.0,103040.0,4e-05]
[1762267136640,0.41369975,103050.0,103040.0,0.00504]
[1762267136970,0.41269975,103050.0,103040.0,4e-05]
[1762267137175,0.41269975,103050.0,103040.0,0.19413937]
[1762267137176,0.21861921,103050.0,103040.0,0.19413937]
[1762267137385,0.41869975,103050.0,103040.0,0.00504]
[1762267137592,0.41869975,103050.0,103040.0,0.00104]
[1762267137791,0.12914014,103050.0,103040.0,0.19913937]
[1762267137996,0.11914015,103050.0,103040.0,0.26807937]
[1762267138201,0.11914015,103050.0,103040.0,0.03047]
[1762267138202,0.12314014,103050.0,103040.0,0.03047]
[1762267138392,0.31722068,103050.0,103040.0,0.19817937]
[1762267138638,0.12314014,103050.0,103040.0,0.29354937]
[1762267138839,0.12314014,103050.0,103040.0,0.29454937]
[1762267139293,0.12314014,103050.0,103040.0,0.00408]
[1762267139537,0.12314014,103050.0,103040.0,0.19817937]
[1762267139750,0.12314014,103050.0,103040.0,0.10145]
[1762267139970,0.12614014,103050.0,103040.0,0.29454937]
[1762267140419,0.12314014,103050.0,103040.0,0.10445]
[1762267140632,0.33659688,103050.0,103040.0,0.00408]
[1762267140858,0.31822068,103050.0,103040.0,0.00408]
[1762267141283,0.21961921,103050.0,103040.0,0.00408]
[1762267141502,0.12414014,103050.0,103040.0,0.00408]
[1762267141717,0.12414014,103050.0,103040.0,0.29354937]
[1762267141930,0.11414015,103050.0,103040.0,0.29354937]
[1762267142182,0.12414014,103050.0,103040.0,0.29354937]
[1762267142395,0.11414015,103050.0,103040.0,0.29554937]
[1762267142606,0.11414015,103050.0,103040.0,0.29354937]
[1762267142846,0.11314015,103050.0,103040.0,0.28954937]
[1762267143062,0.11414015,103050.0,103040.0,0.29854937]
[1762267143279,0.11414015,103050.0,103040.0,0.29554937]
[1762267143533,0.11414015,103050.0,103040.0,0.65521305]
[1762267143748,0.02937619,103090.0,103080.0,0.19402405]
[1762267143965,1.03597589,103110.0,103090.0,0.19798958]
[1762267143966,0.2895547,103110.0,103090.0,0.19798958]
[1762267144184,0.00999999,103100.0,103090.0,0.26692958]
[1762267144405,0.00999999,103100.0,103090.0,0.19798958]
[1762267144616,0.00999999,103110.0,103100.0,0.19398557]
[1762267144839,0.025,103130.0,103120.0,0.19394879]
[1762267145048,0.02548747,103130.0,103120.0,0.03084741]
[1762267145268,0.03548746,103130.0,103120.0,0.02684741]
[1762267145483,0.22941745,103130.0,103120.0,0.02684741]
[1762267145691,0.22941745,103130.0,103120.0,0.03084741]
[1762267145904,0.22941745,103130.0,103120.0,0.09978741]
[1762267146146,0.22941745,103130.0,103120.0,0.03084741]
[1762267146365,0.22941745,103130.0,103120.0,0.03184741]
[1762267146583,0.99608864,103130.0,103120.0,0.01462741]
[1762267146819,0.23341745,103130.0,103120.0,0.01562741]
[1762267147046,0.03948746,103130.0,103120.0,0.0942311]
[1762267147263,0.02948747,103130.0,103120.0,0.10490469]
[1762267147493,0.02948747,103130.0,103120.0,0.28817989]
[1762267147704,0.03948746,103130.0,103120.0,0.21523989]
[1762267147931,0.03948746,103130.0,103120.0,0.0942311]
[1762267148138,0.03948746,103130.0,103120.0,0.28817989]
[1762267148582,0.03948746,103130.0,103120.0,0.0942311]
[1762267148795,0.22941745,103130.0,103120.0,0.0202911]
[1762267149006,0.03548746,103130.0,103120.0,0.21323989]
[1762267149226,0.03548746,103130.0,103120.0,0.29017989]
[1762267149442,0.02548747,103130.0,103120.0,0.29017989]
[1762267149649,0.02548747,103130.0,103120.0,0.28717989]
[1762267149894,0.03743913,103130.0,103120.0,0.28717989]
[1762267150104,0.02743914,103130.0,103120.0,0.28917989]
[1762267150317,0.02743914,103130.0,103120.0,0.28617989]
[1762267150548,0.23136912,103130.0,103120.0,0.0232911]
[1762267150765,1.10726031,103130.0,103120.0,0.01462741]
[1762267151260,4.44726031,103130.0,103120.0,0.01462741]
[1762267151470,0.21368573,103100.0,103070.0,0.19404221]
[1762267151683,0.00999999,103080.0,103070.0,0.19404221]
[1762267151913,0.00073223,103080.0,103070.0,0.26298221]
[1762267152132,0.01073222,103080.0,103070.0,0.26698221]
[1762267152361,0.01073222,103080.0,103070.0,0.26698288]
[1762267152584,0.00073223,103080.0,103070.0,0.26698288]
[1762267153228,0.00073223,103080.0,103070.0,0.27198288]
[1762267153434,0.00073223,103080.0,103070.0,0.26798288]
[1762267153840,0.00073223,103080.0,103070.0,0.26998288]
[1762267154043,0.00073223,103080.0,103070.0,0.32042288]
[1762267154256,0.00999999,103110.0,103100.0,0.19798642]
[1762267154467,0.00014621,103110.0,103100.0,0.26692642]
[1762267154886,0.0101462,103110.0,103100.0,0.26692642]
[1762267155510,0.0111462,103110.0,103100.0,0.26692642]
[1762267155726,0.0111462,103110.0,103100.0,0.31752642]
[1762267155938,0.00014621,103110.0,103100.0,0.31752642]
[1762267156142,0.00114621,103110.0,103100.0,0.32352642]
[1762267156352,0.00114621,103110.0,103100.0,0.32552642]
[1762267156555,0.00114621,103110.0,103100.0,0.32352642]
[1762267156759,0.0101462,103110.0,103100.0,0.31752642]
[1762267156966,0.00114621,103110.0,103100.0,0.32252642]
[1762267157162,0.0111462,103110.0,103100.0,0.32252642]
[1762267157577,0.00114621,103110.0,103100.0,0.32252642]
[1762267157715,0.0111462,103110.0,103100.0,0.32252642]
[1762267158118,0.0111462,103110.0,103100.0,0.009]
[1762267158119,0.2051138,103110.0,103100.0,0.009]
[1762267158334,0.95153499,103110.0,103100.0,0.008]
[1762267158534,0.75756739,103110.0,103100.0,0.008]
[1762267158748,1.34534499,103110.0,103100.0,0.002]
[1762267158961,1.34534499,103110.0,103100.0,0.006]
[1762267158962,4.41674499,103110.0,103100.0,0.006]
[1762267159174,4.426576,103110.0,103100.0,0.004]
[1762267159376,0.5451138,103110.0,103100.0,0.004]
[1762267159577,0.20398641,103100.0,103090.0,0.004]
[1762267159847,0.85190025,103100.0,103090.0,0.19800523]
[1762267160059,0.09547907,103100.0,103090.0,0.19800523]
[1762267160271,1.281535,103110.0,103090.0,0.19800523]
[1762267160272,0.0151462,103110.0,103100.0,0.19398642]
[1762267160482,0.0141462,103110.0,103100.0,0.004]
[1762267160684,0.00999999,103100.0,103090.0,0.25677523]
[1762267160888,0.01399999,103100.0,103090.0,0.25777523]
[1762267161091,0.01399999,103100.0,103090.0,0.30837523]
[1762267161768,0.006,103100.0,103090.0,0.30837523]
[1762267161971,0.004,103100.0,103090.0,0.30837523]
[1762267162173,0.00014621,103110.0,103100.0,0.19798642]
[1762267162379,0.00314621,103110.0,103100.0,0.24958642]
[1762267162585,0.0131462,103110.0,103100.0,0.30835642]
[1762267162789,0.0131462,103110.0,103100.0,0.005]
[1762267162790,0.22649,103110.0,103100.0,0.005]
[1762267162996,0.75656739,103110.0,103100.0,0.004]
[1762267163203,0.0101462,103110.0,103100.0,0.24858642]
[1762267163406,0.0101462,103110.0,103100.0,0.11337]
[1762267163608,0.2051138,103110.0,103100.0,0.0546]
[1762267163744,0.0111462,103110.0,103100.0,0.11337]
[1762267163957,0.0111462,103110.0,103100.0,0.30735642]
[1762267164136,0.2051138,103110.0,103100.0,0.24858642]
[1762267164342,0.2051138,103110.0,103100.0,0.0546]
[1762267164545,0.0111462,103110.0,103100.0,0.19798642]
[1762267164787,0.2051138,103110.0,103100.0,0.0546]
[1762267164990,0.0111462,103110.0,103100.0,0.24858642]
[1762267165194,0.0101462,103110.0,103100.0,0.30735642]
[1762267165340,0.0111462,103110.0,103100.0,0.30735642]
[1762267165537,0.00187813,103110.0,103100.0,0.30735642]
[1762267165742,0.01187812,103110.0,103100.0,0.24858642]
[1762267165984,0.01187812,103110.0,103100.0,0.30735642]
[1762267166159,0.01087812,103110.0,103100.0,0.30735642]
[1762267166385,0.00087813,103110.0,103100.0,0.30735642]
[1762267166586,0.00087813,103110.0,103100.0,0.0566]
[1762267166587,0.20584572,103110.0,103100.0,0.0566]
[1762267166855,0.01187812,103110.0,103100.0,0.0566]
[1762267167100,0.20584572,103110.0,103100.0,0.05651736]
[1762267167381,0.95226691,103110.0,103100.0,0.00591736]
[1762267167580,0.20584572,103110.0,103100.0,0.00595736]
[1762267167813,0.01187812,103110.0,103100.0,0.19994378]
[1762267168023,0.01187812,103110.0,103100.0,0.26024747]
[1762267168233,0.00287813,103110.0,103100.0,0.31901747]
[1762267168445,0.00187813,103110.0,103100.0,0.31905747]
[1762267168662,0.00187813,103110.0,103100.0,0.31899064]
[1762267168890,0.00287813,103110.0,103100.0,0.31718011]
[1762267169107,0.01087812,103110.0,103100.0,0.25841011]
[1762267169313,0.01187812,103110.0,103100.0,0.30751642]
[1762267169524,0.85477838,103110.0,103100.0,0.19814642]
[1762267169735,0.01087812,103110.0,103100.0,0.24874642]
[1762267169945,0.01087812,103110.0,103100.0,0.30751642]
[1762267170166,0.01087812,103110.0,103100.0,0.05476]
[1762267170379,0.95226691,103110.0,103100.0,0.20007253]
[1762267170589,0.95226691,103110.0,103100.0,0.00608611]
[1762267170797,0.95126691,103110.0,103100.0,0.00408611]
[1762267171004,0.96013854,103110.0,103100.0,0.00408611]
[1762267171209,1.08354854,103110.0,103100.0,0.00408611]
[1762267171434,1.44398667,103110.0,103100.0,8.611e-05]
[1762267171639,1.46174516,103110.0,103100.0,8.611e-05]
[1762267171842,1.44398667,103110.0,103100.0,2.769e-05]
[1762267172046,1.46274534,103110.0,103100.0,2.769e-05]
[1762267172239,1.46274653,103110.0,103100.0,2.769e-05]
[1762267172443,4.46274653,103110.0,103100.0,2.769e-05]
[1762267172649,4.49074653,103110.0,103100.0,2.769e-05]
[1762267172878,4.46574653,103110.0,103100.0,2.769e-05]
[1762267173081,1.02952667,103110.0,103100.0,2.769e-05]
[1762267173286,0.78260908,103110.0,103100.0,0.19901411]
[1762267173493,0.01987812,103110.0,103100.0,0.30043411]
[1762267173697,0.00987813,103110.0,103100.0,0.3090978]
[1762267173900,0.00387813,103110.0,103100.0,0.3090978]
[1762267174195,0.00687813,103110.0,103100.0,0.3100978]
[1762267174603,0.00387813,103110.0,103100.0,0.3100978]
[1762267174808,0.00387813,103110.0,103100.0,0.3101378]
[1762267175014,0.00787813,103110.0,103100.0,0.3101378]
[1762267175145,0.00387813,103110.0,103100.0,0.3101378]
[1762267175350,0.00087813,103110.0,103100.0,0.3587378]
[1762267175547,0.025,103130.0,103120.0,0.19394879]
[1762267175772,0.02548708,103130.0,103120.0,0.27453248]
[1762267175977,0.02548708,103130.0,103120.0,0.32762248]
[1762267176329,0.00048778,103130.0,103120.0,0.71714248]
[1762267176761,1e-08,103130.0,103120.0,0.71714248]
[1762267176985,1e-08,103140.0,103130.0,0.63534999]
[1762267177189,1e-08,103140.0,103130.0,0.63934999]
[1762267178411,1e-08,103140.0,103130.0,0.63534999]
[1762267178758,0.00300001,103140.0,103130.0,0.63534999]